Workbook

Sheet 1 综合成绩
A1: 黄石市2023年度考试录用公务员考试成绩折算汇总表
A2: 机构名称 | B2: 招录机关 | C2: 招录职位 | D2: 职位代码 | E2: 招录 数量 | F2: 姓名 | G2: 性别 | H2: 准考证号 | I2: 行政职业能力测验 | J2: 申论 | K2: 公安专业科目 | L2: 综合知 识测试 | M2: 笔试 折算分 | N2: 面试分数 | O2: 综合成绩 | P2: 排名 | W2: 职位代码 | X2: 候考室 | Y2: 候考序号
A3: 黄石市直 | B3: 黄石市委宣传部 | C3: 综合管理岗 | D3: 14230202008001001 | E3: 2 | F3: 宋子健 | G3: 男 | H3: 142020101129 | I3: 67.2 | J3: 74.5 | K3: / | L3: / | M3: 70.485 | N3: 78.94 | O3: =M3*0.5+N3*0.5 -> 74.7125 | P3: 1 | W3: 14230202008001001 | X3: 1 | Y3: 1
A4: 黄石市直 | B4: 黄石市委宣传部 | C4: 综合管理岗 | D4: 14230202008001001 | E4: 2 | F4: 葛硕昌 | G4: 男 | H4: 142020103413 | I4: 72.8 | J4: 71 | K4: / | L4: / | M4: 71.99 | N4: 76.36 | O4: 74.175 | P4: 2 | W4: 14230202008001002 | X4: 1 | Y4: 2
A5: 黄石市直 | B5: 黄石市委宣传部 | C5: 综合管理岗 | D5: 14230202008001001 | E5: 2 | F5: 袁野 | G5: 男 | H5: 142020104302 | I5: 72.8 | J5: 65 | K5: / | L5: / | M5: 69.29 | N5: 78.44 | O5: 73.865 | P5: 3 | W5: 14230202008001003 | X5: 1 | Y5: 3
A6: 黄石市直 | B6: 黄石市委宣传部 | C6: 综合管理岗 | D6: 14230202008001001 | E6: 2 | F6: 李蕾 | G6: 女 | H6: 142020101117 | I6: 65.6 | J6: 76 | K6: / | L6: / | M6: 70.28 | N6: 76.9 | O6: 73.59 | P6: 4 | W6: 14230202008001004 | X6: 1 | Y6: 4
A7: 黄石市直 | B7: 黄石市委宣传部 | C7: 综合管理岗 | D7: 14230202008001001 | E7: 2 | F7: 王琳 | G7: 男 | H7: 142020103327 | I7: 68.8 | J7: 68.5 | K7: / | L7: / | M7: 68.665 | N7: 74.36 | O7: 71.5125 | P7: 5 | W7: 14230202008001005 | X7: 1 | Y7: 5
A8: 黄石市直 | B8: 黄石市委宣传部 | C8: 综合管理岗 | D8: 14230202008001001 | E8: 2 | F8: 孙巧岩 | G8: 女 | H8: 142020105018 | I8: 66.4 | J8: 67 | K8: / | L8: / | M8: 66.67 | N8: 73.44 | O8: 70.055 | P8: 6 | W8: 14230202008001006 | X8: 1 | Y8: 6
A9: 黄石市直 | B9: 黄石市信访局 | C9: 办公室综合岗 | D9: 14230202008001002 | E9: 1 | F9: 黄平格 | G9: 男 | H9: 142020101922 | I9: 68.8 | J9: 67 | K9: / | L9: / | M9: 67.99 | N9: 76.7 | O9: 72.345 | P9: 1 | W9: 14230202008001008 | X9: 1 | Y9: 7
A10: 黄石市直 | B10: 黄石市信访局 | C10: 办公室综合岗 | D10: 14230202008001002 | E10: 1 | F10: 杨才谦 | G10: 男 | H10: 142020100705 | I10: 64 | J10: 66 | K10: / | L10: / | M10: 64.9 | N10: 75.58 | O10: 70.24 | P10: 2 | W10: 14230202008009001 | X10: 2 | Y10: 1
A11: 黄石市直 | B11: 黄石市信访局 | C11: 办公室综合岗 | D11: 14230202008001002 | E11: 1 | F11: 王哲伟 | G11: 男 | H11: 142020101915 | I11: 62.4 | J11: 68.5 | K11: / | L11: / | M11: 65.145 | N11: 74.26 | O11: 69.7025 | P11: 3 | W11: 14230202008001009 | X11: 2 | Y11: 2
A12: 黄石市直 | B12: 黄石市人大常委会办公室 | C12: 立法服务岗 | D12: 14230202008001003 | E12: 1 | F12: 李航 | G12: 男 | H12: 142020106807 | I12: 55.2 | J12: 73 | K12: / | L12: / | M12: 63.21 | N12: 77.06 | O12: 70.135 | P12: 1 | W12: 14230202008001011 | X12: 2 | Y12: 3
A13: 黄石市直 | B13: 黄石市人大常委会办公室 | C13: 立法服务岗 | D13: 14230202008001003 | E13: 1 | F13: 冯夷 | G13: 女 | H13: 142020102419 | I13: 66.4 | J13: 55.5 | K13: / | L13: / | M13: 61.495 | N13: 77.42 | O13: 69.4575 | P13: 2 | W13: 14230202008001013 | X13: 2 | Y13: 4
A14: 黄石市直 | B14: 黄石市人大常委会办公室 | C14: 立法服务岗 | D14: 14230202008001003 | E14: 1 | F14: 邓婵 | G14: 女 | H14: 142020102130 | I14: 52.8 | J14: 71 | K14: / | L14: / | M14: 60.99 | N14: 68.94 | O14: 64.965 | P14: 3 | W14: 14230202008001015 | X14: 2 | Y14: 5
A15: 黄石市直 | B15: 政协黄石市委员会办公室 | C15: 综合管理岗 | D15: 14230202008001004 | E15: 1 | F15: 荆晶 | G15: 女 | H15: 142020106005 | I15: 69.6 | J15: 74 | K15: / | L15: / | M15: 71.58 | N15: 83.88 | O15: 77.73 | P15: 1 | W15: 14230202008001016 | X15: 2 | Y15: 6
A16: 黄石市直 | B16: 政协黄石市委员会办公室 | C16: 综合管理岗 | D16: 14230202008001004 | E16: 1 | F16: 吴晓婷 | G16: 女 | H16: 142020102312 | I16: 74.4 | J16: 73.5 | K16: / | L16: / | M16: 73.995 | N16: 77.5 | O16: 75.7475 | P16: 2 | W16: 14230202008001023 | X16: 3 | Y16: 1
A17: 黄石市直 | B17: 政协黄石市委员会办公室 | C17: 综合管理岗 | D17: 14230202008001004 | E17: 1 | F17: 邢青 | G17: 女 | H17: 142020104020 | I17: 69.6 | J17: 73 | K17: / | L17: / | M17: 71.13 | N17: 76.32 | O17: 73.725 | P17: 3 | W17: 14230202008001018 | X17: 3 | Y17: 2
A18: 黄石市直 | B18: 黄石市发改委 | C18: 文字综合岗 | D18: 14230202008001005 | E18: 1 | F18: 罗马 | G18: 男 | H18: 142020104403 | I18: 73.6 | J18: 73.5 | K18: / | L18: / | M18: 73.555 | N18: 79 | O18: 76.2775 | P18: 1 | W18: 14230202008001019 | X18: 3 | Y18: 3
A19: 黄石市直 | B19: 黄石市发改委 | C19: 文字综合岗 | D19: 14230202008001005 | E19: 1 | F19: 刘皓 | G19: 男 | H19: 142020103405 | I19: 67.2 | J19: 73.5 | K19: / | L19: / | M19: 70.035 | N19: 80.1 | O19: 75.0675 | P19: 2 | W19: 14230202008001024 | X19: 3 | Y19: 4
A20: 黄石市直 | B20: 黄石市发改委 | C20: 文字综合岗 | D20: 14230202008001005 | E20: 1 | F20: 陈璐 | G20: 女 | H20: 142020103411 | I20: 69.6 | J20: 69 | K20: / | L20: / | M20: 69.33 | N20: 74.34 | O20: 71.835 | P20: 3 | W20: 14230202008001025 | X20: 3 | Y20: 5
A21: 黄石市直 | B21: 黄石市发改委 | C21: 文字综合岗 | D21: 14230202008001005 | E21: 1 | F21: 黄亚琴 | G21: 女 | H21: 142020102116 | I21: 69.6 | J21: 69 | K21: / | L21: / | M21: 69.33 | N21: 71.94 | O21: 70.635 | P21: 4 | W21: 14230202008001026 | X21: 3 | Y21: 6
A22: 黄石市直 | B22: 黄石市发改委 | C22: 综合管理岗 | D22: 14230202008001006 | E22: 1 | F22: 尹德龙 | G22: 男 | H22: 142020104610 | I22: 70.4 | J22: 74.5 | K22: / | L22: / | M22: 72.245 | N22: 76.78 | O22: 74.5125 | P22: 1 | W22: 14230202008001027 | X22: 3 | Y22: 7
A23: 黄石市直 | B23: 黄石市发改委 | C23: 综合管理岗 | D23: 14230202008001006 | E23: 1 | F23: 明祥栋 | G23: 男 | H23: 142020102220 | I23: 71.2 | J23: 74.5 | K23: / | L23: / | M23: 72.685 | N23: 75.82 | O23: 74.2525 | P23: 2 | W23: 14230202008001028 | X23: 3 | Y23: 8
A24: 黄石市直 | B24: 黄石市发改委 | C24: 综合管理岗 | D24: 14230202008001006 | E24: 1 | F24: 石有朋 | G24: 男 | H24: 142020102327 | I24: 69.6 | J24: 72 | K24: / | L24: / | M24: 70.68 | N24: 69.94 | O24: 70.31 | P24: 3 | W24: 14230202008001029 | X24: 4 | Y24: 1
A25: 黄石市直 | B25: 黄石市经信局 | C25: 综合管理岗 | D25: 14230202008001008 | E25: 1 | F25: 向泽波 | G25: 男 | H25: 142020105430 | I25: 79.2 | J25: 75 | K25: / | L25: / | M25: 77.31 | N25: 79.64 | O25: 78.475 | P25: 1 | W25: 14230202008001030 | X25: 4 | Y25: 2
A26: 黄石市直 | B26: 黄石市经信局 | C26: 综合管理岗 | D26: 14230202008001008 | E26: 1 | F26: 王航 | G26: 男 | H26: 142020105821 | I26: 68 | J26: 69 | K26: / | L26: / | M26: 68.45 | N26: 77.92 | O26: 73.185 | P26: 2 | W26: 14230202008001031 | X26: 4 | Y26: 3
A27: 黄石市直 | B27: 黄石市经信局 | C27: 综合管理岗 | D27: 14230202008001008 | E27: 1 | F27: 袁建杰 | G27: 男 | H27: 142020104212 | I27: 71.2 | J27: 63.5 | K27: / | L27: / | M27: 67.735 | N27: 78.28 | O27: 73.0075 | P27: 3 | W27: 14230202008001032 | X27: 4 | Y27: 4
A28: 黄石市直 | B28: 黄石市司法局 | C28: 综合管理岗 | D28: 14230202008001009 | E28: 2 | F28: 盛素云 | G28: 女 | H28: 142020102524 | I28: 69.6 | J28: 71 | K28: / | L28: / | M28: 70.23 | N28: 78.74 | O28: 74.485 | P28: 1 | W28: 14230202008001033 | X28: 4 | Y28: 5
A29: 黄石市直 | B29: 黄石市司法局 | C29: 综合管理岗 | D29: 14230202008001009 | E29: 2 | F29: 袁芷菱 | G29: 女 | H29: 142020101304 | I29: 67.2 | J29: 68.5 | K29: / | L29: / | M29: 67.785 | N29: 80.88 | O29: 74.3325 | P29: 2 | W29: 14230202008001035 | X29: 5 | Y29: 1
A30: 黄石市直 | B30: 黄石市司法局 | C30: 综合管理岗 | D30: 14230202008001009 | E30: 2 | F30: 毛波 | G30: 男 | H30: 142020104525 | I30: 64.8 | J30: 71 | K30: / | L30: / | M30: 67.59 | N30: 80.74 | O30: 74.165 | P30: 3 | W30: 14230202008001037 | X30: 5 | Y30: 2
A31: 黄石市直 | B31: 黄石市司法局 | C31: 综合管理岗 | D31: 14230202008001009 | E31: 2 | F31: 胡星如 | G31: 女 | H31: 142020102706 | I31: 62.4 | J31: 70 | K31: / | L31: / | M31: 65.82 | N31: 80.22 | O31: 73.02 | P31: 4 | W31: 14230202008001034 | X31: 5 | Y31: 3
A32: 黄石市直 | B32: 黄石市司法局 | C32: 综合管理岗 | D32: 14230202008001009 | E32: 2 | F32: 曹昭 | G32: 女 | H32: 142020106129 | I32: 64.8 | J32: 67.5 | K32: / | L32: / | M32: 66.015 | N32: 77.04 | O32: 71.5275 | P32: 5 | W32: 14230202008001038 | X32: 5 | Y32: 4
A33: 黄石市直 | B33: 黄石市司法局 | C33: 综合管理岗 | D33: 14230202008001009 | E33: 2 | F33: 王慧 | G33: 女 | H33: 142020106525 | I33: 62.4 | J33: 68.5 | K33: / | L33: / | M33: 65.145 | N33: 76.08 | O33: 70.6125 | P33: 6 | W33: 14230202008001039 | X33: 5 | Y33: 5
A34: 黄石市直 | B34: 黄石市强制隔离戒毒所 | C34: 执法勤务岗 | D34: 14230202008001010 | E34: 5 | F34: 黄海咏 | G34: 男 | H34: 142020311908 | I34: 75.2 | J34: 53.5 | K34: / | L34: / | M34: 65.435 | N34: 82.36 | O34: 73.8975 | P34: 1 | W34: 14230202008001040 | X34: 5 | Y34: 6
A35: 黄石市直 | B35: 黄石市强制隔离戒毒所 | C35: 执法勤务岗 | D35: 14230202008001010 | E35: 5 | F35: 柯尊豪 | G35: 男 | H35: 142020312508 | I35: 72.8 | J35: 55.5 | K35: / | L35: / | M35: 65.015 | N35: 81.48 | O35: 73.2475 | P35: 2 | W35: 14230202008001041 | X35: 5 | Y35: 7
A36: 黄石市直 | B36: 黄石市强制隔离戒毒所 | C36: 执法勤务岗 | D36: 14230202008001010 | E36: 5 | F36: 江李 | G36: 男 | H36: 142020314815 | I36: 66.4 | J36: 62.5 | K36: / | L36: / | M36: 64.645 | N36: 81.74 | O36: 73.1925 | P36: 3 | W36: 14230202008001042 | X36: 6 | Y36: 1
A37: 黄石市直 | B37: 黄石市强制隔离戒毒所 | C37: 执法勤务岗 | D37: 14230202008001010 | E37: 5 | F37: 顾佼龙 | G37: 男 | H37: 142020314309 | I37: 64.8 | J37: 58 | K37: / | L37: / | M37: 61.74 | N37: 82.82 | O37: 72.28 | P37: 4 | W37: 14230202008001043 | X37: 6 | Y37: 2
A38: 黄石市直 | B38: 黄石市强制隔离戒毒所 | C38: 执法勤务岗 | D38: 14230202008001010 | E38: 5 | F38: 王华清 | G38: 男 | H38: 142020308711 | I38: 62.4 | J38: 59 | K38: / | L38: / | M38: 60.87 | N38: 81.44 | O38: 71.155 | P38: 5 | W38: 14230202008001048 | X38: 6 | Y38: 3
A39: 黄石市直 | B39: 黄石市强制隔离戒毒所 | C39: 执法勤务岗 | D39: 14230202008001010 | E39: 5 | F39: 詹恒 | G39: 男 | H39: 142020309505 | I39: 64 | J39: 59.5 | K39: / | L39: / | M39: 61.975 | N39: 78.7 | O39: 70.3375 | P39: 6 | W39: 14230202008001046 | X39: 6 | Y39: 4
A40: 黄石市直 | B40: 黄石市强制隔离戒毒所 | C40: 执法勤务岗 | D40: 14230202008001010 | E40: 5 | F40: 季博豪 | G40: 男 | H40: 142020107527 | I40: 62.4 | J40: 61.5 | K40: / | L40: / | M40: 61.995 | N40: 77.88 | O40: 69.9375 | P40: 7 | W40: 14230202008001047 | X40: 6 | Y40: 5
A41: 黄石市直 | B41: 黄石市强制隔离戒毒所 | C41: 执法勤务岗 | D41: 14230202008001010 | E41: 5 | F41: 吴科燻 | G41: 男 | H41: 142020314724 | I41: 59.2 | J41: 61.5 | K41: / | L41: / | M41: 60.235 | N41: 79.56 | O41: 69.8975 | P41: 8 | W41: 14230202008001049 | X41: 6 | Y41: 6
A42: 黄石市直 | B42: 黄石市强制隔离戒毒所 | C42: 执法勤务岗 | D42: 14230202008001010 | E42: 5 | F42: 段敦锦 | G42: 男 | H42: 142020201224 | I42: 72 | J42: 52 | K42: / | L42: / | M42: 63 | N42: 76.72 | O42: 69.86 | P42: 9 | W42: 14230202008001051 | X42: 6 | Y42: 7
A43: 黄石市直 | B43: 黄石市强制隔离戒毒所 | C43: 执法勤务岗 | D43: 14230202008001010 | E43: 5 | F43: 李威 | G43: 男 | H43: 142020309213 | I43: 67.2 | J43: 53.5 | K43: / | L43: / | M43: 61.035 | N43: 77.98 | O43: 69.5075 | P43: 10 | W43: 14230202008001052 | X43: 6 | Y43: 8
A44: 黄石市直 | B44: 黄石市强制隔离戒毒所 | C44: 执法勤务岗 | D44: 14230202008001010 | E44: 5 | F44: 余子玥 | G44: 男 | H44: 142020306628 | I44: 68.8 | J44: 52.5 | K44: / | L44: / | M44: 61.465 | N44: 77.18 | O44: 69.3225 | P44: 11 | W44: 14230202008001053 | X44: 7 | Y44: 1
A45: 黄石市直 | B45: 黄石市强制隔离戒毒所 | C45: 执法勤务岗 | D45: 14230202008001010 | E45: 5 | F45: 陈锦夫 | G45: 男 | H45: 142020312529 | I45: 64 | J45: 55 | K45: / | L45: / | M45: 59.95 | N45: 77.5 | O45: 68.725 | P45: 12 | W45: 14230202008001054 | X45: 7 | Y45: 2
A46: 黄石市直 | B46: 黄石市强制隔离戒毒所 | C46: 执法勤务岗 | D46: 14230202008001010 | E46: 5 | F46: 王晨 | G46: 男 | H46: 142020312718 | I46: 62.4 | J46: 57 | K46: / | L46: / | M46: 59.97 | N46: 71.32 | O46: 65.645 | P46: 13 | W46: 14230202008001055 | X46: 7 | Y46: 3
A47: 黄石市直 | B47: 黄石市强制隔离戒毒所 | C47: 执法勤务岗 | D47: 14230202008001010 | E47: 5 | F47: 李畅 | G47: 男 | H47: 142020305924 | I47: 69.6 | J47: 53 | K47: / | L47: / | M47: 62.13 | N47: 66.56 | O47: 64.345 | P47: 14 | W47: 14230202008001057 | X47: 7 | Y47: 4
A48: 黄石市直 | B48: 黄石市强制隔离戒毒所 | C48: 执法勤务岗 | D48: 14230202008001010 | E48: 5 | F48: 吴子庆 | G48: 男 | H48: 142020202607 | I48: 71.2 | J48: 51.5 | K48: / | L48: / | M48: 62.335 | N48: 缺考 | O48: =M48*0.5 -> 31.1675 | P48: 15 | W48: 14230202008001058 | X48: 7 | Y48: 5
A49: 黄石市直 | B49: 黄石市财政局 | C49: 财政业务管理岗 | D49: 14230202008001011 | E49: 2 | F49: 朱正武 | G49: 男 | H49: 142020102915 | I49: 73.6 | J49: 69 | K49: / | L49: / | M49: 71.53 | N49: 78.98 | O49: =M49*0.5+N49*0.5 -> 75.255 | P49: 1 | W49: 14230202008001059 | X49: 7 | Y49: 6
A50: 黄石市直 | B50: 黄石市财政局 | C50: 财政业务管理岗 | D50: 14230202008001011 | E50: 2 | F50: 陈婷 | G50: 女 | H50: 142020103124 | I50: 70.4 | J50: 71.5 | K50: / | L50: / | M50: 70.895 | N50: 78.74 | O50: 74.8175 | P50: 2 | W50: 14230202008001060 | X50: 7 | Y50: 7
A51: 黄石市直 | B51: 黄石市财政局 | C51: 财政业务管理岗 | D51: 14230202008001011 | E51: 2 | F51: 徐徐 | G51: 女 | H51: 142020100730 | I51: 65.6 | J51: 75.5 | K51: / | L51: / | M51: 70.055 | N51: 78.84 | O51: 74.4475 | P51: 3 | W51: 14230202008001061 | X51: 8 | Y51: 1
A52: 黄石市直 | B52: 黄石市财政局 | C52: 财政业务管理岗 | D52: 14230202008001011 | E52: 2 | F52: 刘娟 | G52: 女 | H52: 142020100419 | I52: 64 | J52: 73 | K52: / | L52: / | M52: 68.05 | N52: 77.84 | O52: 72.945 | P52: 4 | W52: 14230202008001062 | X52: 8 | Y52: 2
A53: 黄石市直 | B53: 黄石市财政局 | C53: 财政业务管理岗 | D53: 14230202008001011 | E53: 2 | F53: 汪淼 | G53: 男 | H53: 142020103016 | I53: 64.8 | J53: 66.5 | K53: / | L53: / | M53: 65.565 | N53: 77.52 | O53: 71.5425 | P53: 5 | W53: 14230202008001063 | X53: 8 | Y53: 3
A54: 黄石市直 | B54: 黄石市财政局 | C54: 财政业务管理岗 | D54: 14230202008001011 | E54: 2 | F54: 刘桥 | G54: 男 | H54: 142020104719 | I54: 62.4 | J54: 68.5 | K54: / | L54: / | M54: 65.145 | N54: 76.9 | O54: 71.0225 | P54: 6 | W54: 14230202008001064 | X54: 8 | Y54: 4
A55: 黄石市直 | B55: 黄石市审计局 | C55: 审计业务岗 | D55: 14230202008001013 | E55: 2 | F55: 明浩 | G55: 男 | H55: 142020102711 | I55: 74.4 | J55: 68.5 | K55: / | L55: / | M55: 71.745 | N55: 78.78 | O55: 75.2625 | P55: 1 | W55: 14230202008010001 | X55: 8 | Y55: 5
A56: 黄石市直 | B56: 黄石市审计局 | C56: 审计业务岗 | D56: 14230202008001013 | E56: 2 | F56: 钱芸 | G56: 女 | H56: 142020104707 | I56: 64 | J56: 75 | K56: / | L56: / | M56: 68.95 | N56: 78.06 | O56: 73.505 | P56: 2 | W56: 14230202008010002 | X56: 8 | Y56: 6
A57: 黄石市直 | B57: 黄石市审计局 | C57: 审计业务岗 | D57: 14230202008001013 | E57: 2 | F57: 占鹂 | G57: 女 | H57: 142020100825 | I57: 66.4 | J57: 69 | K57: / | L57: / | M57: 67.57 | N57: 79.36 | O57: 73.465 | P57: 3 | W57: 14230202008001010 | X57: 9 | Y57: 1
A58: 黄石市直 | B58: 黄石市审计局 | C58: 审计业务岗 | D58: 14230202008001013 | E58: 2 | F58: 黄凡 | G58: 女 | H58: 142020105025 | I58: 68.8 | J58: 69.5 | K58: / | L58: / | M58: 69.115 | N58: 77.78 | O58: 73.4475 | P58: 4 | W58: 14230202008001020 | X58: 9 | Y58: 2
A59: 黄石市直 | B59: 黄石市审计局 | C59: 审计业务岗 | D59: 14230202008001013 | E59: 2 | F59: 刘诗晨 | G59: 女 | H59: 142020102328 | I59: 68 | J59: 68.5 | K59: / | L59: / | M59: 68.225 | N59: 78.16 | O59: 73.1925 | P59: 5 | W59: 14230202008001021 | X59: 9 | Y59: 3
A60: 黄石市直 | B60: 黄石市审计局 | C60: 审计业务岗 | D60: 14230202008001013 | E60: 2 | F60: 卫畅 | G60: 女 | H60: 142020106229 | I60: 68 | J60: 68.5 | K60: / | L60: / | M60: 68.225 | N60: 76.78 | O60: 72.5025 | P60: 6 | W60: 14230202008001022 | X60: 9 | Y60: 4
A61: 黄石市直 | B61: 黄石市市场监管局 | C61: 监管执法岗1 | D61: 14230202008001015 | E61: 1 | F61: 陈萍 | G61: 女 | H61: 142020100711 | I61: 76 | J61: 67.5 | K61: / | L61: / | M61: 72.175 | N61: 78.24 | O61: 75.2075 | P61: 1 | W61: 14230202008002003 | X61: 9 | Y61: 5
A62: 黄石市直 | B62: 黄石市市场监管局 | C62: 监管执法岗1 | D62: 14230202008001015 | E62: 1 | F62: 郑懿 | G62: 男 | H62: 142020106316 | I62: 72.8 | J62: 69.5 | K62: / | L62: / | M62: 71.315 | N62: 77.78 | O62: 74.5475 | P62: 2 | W62: 14230202008002004 | X62: 9 | Y62: 6
A63: 黄石市直 | B63: 黄石市市场监管局 | C63: 监管执法岗1 | D63: 14230202008001015 | E63: 1 | F63: 汪奇 | G63: 女 | H63: 142020101723 | I63: 65.6 | J63: 71 | K63: / | L63: / | M63: 68.03 | N63: 77.28 | O63: 72.655 | P63: 3 | W63: 14230202008002001 | X63: 10 | Y63: 1
A64: 黄石市直 | B64: 黄石市市场监管局 | C64: 监管执法岗2 | D64: 14230202008001016 | E64: 1 | F64: 陈成 | G64: 男 | H64: 142020102913 | I64: 72.8 | J64: 70 | K64: / | L64: / | M64: 71.54 | N64: 79.24 | O64: 75.39 | P64: 1 | W64: 14230202008002002 | X64: 10 | Y64: 2
A65: 黄石市直 | B65: 黄石市市场监管局 | C65: 监管执法岗2 | D65: 14230202008001016 | E65: 1 | F65: 罗琳颖 | G65: 女 | H65: 142020105718 | I65: 68 | J65: 65.5 | K65: / | L65: / | M65: 66.875 | N65: 79.22 | O65: 73.0475 | P65: 2 | W65: 14230202008002005 | X65: 10 | Y65: 3
A66: 黄石市直 | B66: 黄石市市场监管局 | C66: 监管执法岗2 | D66: 14230202008001016 | E66: 1 | F66: 苗雨辰 | G66: 男 | H66: 142020105826 | I66: 65.6 | J66: 62.5 | K66: / | L66: / | M66: 64.205 | N66: 78 | O66: 71.1025 | P66: 3 | W66: 14230202008002006 | X66: 10 | Y66: 4
A67: 黄石市直 | B67: 黄石市统计局 | C67: 业务综合岗 | D67: 14230202008001018 | E67: 1 | F67: 余黎 | G67: 女 | H67: 142020105326 | I67: 63.2 | J67: 73 | K67: / | L67: / | M67: 67.61 | N67: 85.66 | O67: 76.635 | P67: 1 | W67: 14230202008002007 | X67: 10 | Y67: 5
A68: 黄石市直 | B68: 黄石市统计局 | C68: 业务综合岗 | D68: 14230202008001018 | E68: 1 | F68: 黄开灿 | G68: 男 | H68: 142020103227 | I68: 70.4 | J68: 72 | K68: / | L68: / | M68: 71.12 | N68: 79.64 | O68: 75.38 | P68: 2 | W68: 14230202008002009 | X68: 10 | Y68: 6
A69: 黄石市直 | B69: 黄石市统计局 | C69: 业务综合岗 | D69: 14230202008001018 | E69: 1 | F69: 周洋 | G69: 男 | H69: 142020101905 | I69: 65.6 | J69: 68.5 | K69: / | L69: / | M69: 66.905 | N69: 71.84 | O69: 69.3725 | P69: 3 | W69: 14230202008002010 | X69: 10 | Y69: 7
A70: 黄石市直 | B70: 黄石市统计局 | C70: 综合管理岗 | D70: 14230202008001019 | E70: 1 | F70: 许飞 | G70: 男 | H70: 142020103525 | I70: 74.4 | J70: 67 | K70: / | L70: / | M70: 71.07 | N70: 80.12 | O70: 75.595 | P70: 1 | W70: 14230202008002011 | X70: 10 | Y70: 8
A71: 黄石市直 | B71: 黄石市统计局 | C71: 综合管理岗 | D71: 14230202008001019 | E71: 1 | F71: 李琦雯 | G71: 女 | H71: 142020102210 | I71: 68.8 | J71: 77.5 | K71: / | L71: / | M71: 72.715 | N71: 75.98 | O71: 74.3475 | P71: 2 | W71: 14230202008002012 | X71: 10 | Y71: 9
A72: 黄石市直 | B72: 黄石市统计局 | C72: 综合管理岗 | D72: 14230202008001019 | E72: 1 | F72: 李彬 | G72: 男 | H72: 142020106017 | I72: 72 | J72: 69 | K72: / | L72: / | M72: 70.65 | N72: 75.04 | O72: 72.845 | P72: 3 | W72: 14230202008002014 | X72: 10 | Y72: 10
A73: 黄石市直 | B73: 黄石市生态环境局大冶市分局 | C73: 综合管理岗 | D73: 14230202008001020 | E73: 1 | F73: 王吕涛 | G73: 男 | H73: 142020309528 | I73: 59.2 | J73: 59 | K73: / | L73: / | M73: 59.11 | N73: 80.14 | O73: 69.625 | P73: 1 | W73: 14230202008002013 | X73: 11 | Y73: 1
A74: 黄石市直 | B74: 黄石市生态环境局大冶市分局 | C74: 综合管理岗 | D74: 14230202008001020 | E74: 1 | F74: 曹倩文 | G74: 女 | H74: 142020201204 | I74: 62.4 | J74: 54 | K74: / | L74: / | M74: 58.62 | N74: 79.46 | O74: 69.04 | P74: 2 | W74: 14230202008002015 | X74: 11 | Y74: 2
A75: 黄石市直 | B75: 黄石市生态环境局大冶市分局 | C75: 综合管理岗 | D75: 14230202008001020 | E75: 1 | F75: 肖梦兰 | G75: 女 | H75: 142020306813 | I75: 63.2 | J75: 53.5 | K75: / | L75: / | M75: 58.835 | N75: 78.96 | O75: 68.8975 | P75: 3 | W75: 14230202008002016 | X75: 11 | Y75: 3
A76: 黄石市直 | B76: 黄石市生态环境局阳新县分局 | C76: 综合管理岗1 | D76: 14230202008001021 | E76: 2 | F76: 黄铠星 | G76: 男 | H76: 142020201629 | I76: 65.6 | J76: 59 | K76: / | L76: / | M76: 62.63 | N76: 83.54 | O76: 73.085 | P76: 1 | W76: 14230202008002017 | X76: 11 | Y76: 4
A77: 黄石市直 | B77: 黄石市生态环境局阳新县分局 | C77: 综合管理岗1 | D77: 14230202008001021 | E77: 2 | F77: 张帅 | G77: 男 | H77: 142020305821 | I77: 64 | J77: 64 | K77: / | L77: / | M77: 64 | N77: 78.9 | O77: 71.45 | P77: 2 | W77: 14230202008002018 | X77: 11 | Y77: 5
A78: 黄石市直 | B78: 黄石市生态环境局阳新县分局 | C78: 综合管理岗1 | D78: 14230202008001021 | E78: 2 | F78: 王贤旺 | G78: 男 | H78: 142020203007 | I78: 71.2 | J78: 54.5 | K78: / | L78: / | M78: 63.685 | N78: 78.82 | O78: 71.2525 | P78: 3 | W78: 14230202008002022 | X78: 11 | Y78: 6
A79: 黄石市直 | B79: 黄石市生态环境局阳新县分局 | C79: 综合管理岗1 | D79: 14230202008001021 | E79: 2 | F79: 曹川 | G79: 男 | H79: 142020313409 | I79: 65.6 | J79: 59 | K79: / | L79: / | M79: 62.63 | N79: 79.78 | O79: 71.205 | P79: 4 | W79: 14230202008002019 | X79: 12 | Y79: 1
A80: 黄石市直 | B80: 黄石市生态环境局阳新县分局 | C80: 综合管理岗1 | D80: 14230202008001021 | E80: 2 | F80: 陈景 | G80: 男 | H80: 142020204113 | I80: 70.4 | J80: 55.5 | K80: / | L80: / | M80: 63.695 | N80: 77.62 | O80: 70.6575 | P80: 5 | W80: 14230202008002020 | X80: 12 | Y80: 2
A81: 黄石市直 | B81: 黄石市生态环境局阳新县分局 | C81: 综合管理岗1 | D81: 14230202008001021 | E81: 2 | F81: 冯鼎成 | G81: 男 | H81: 142020312402 | I81: 70.4 | J81: 53 | K81: / | L81: / | M81: 62.57 | N81: 73.62 | O81: 68.095 | P81: 6 | W81: 14230202008002021 | X81: 12 | Y81: 3
A82: 黄石市直 | B82: 黄石市生态环境局阳新县分局 | C82: 综合管理岗2 | D82: 14230202008001022 | E82: 1 | F82: 王哲 | G82: 男 | H82: 142020203211 | I82: 76 | J82: 67 | K82: / | L82: / | M82: 71.95 | N82: 76.78 | O82: 74.365 | P82: 1 | W82: 14230202008002023 | X82: 12 | Y82: 4
A83: 黄石市直 | B83: 黄石市生态环境局阳新县分局 | C83: 综合管理岗2 | D83: 14230202008001022 | E83: 1 | F83: 陈亦佳 | G83: 女 | H83: 142020306916 | I83: 73.6 | J83: 60.5 | K83: / | L83: / | M83: 67.705 | N83: 75.2 | O83: 71.4525 | P83: 2 | W83: 14230202008002024 | X83: 12 | Y83: 5
A84: 黄石市直 | B84: 黄石市生态环境局阳新县分局 | C84: 综合管理岗2 | D84: 14230202008001022 | E84: 1 | F84: 邹志坚 | G84: 男 | H84: 142020315503 | I84: 66.4 | J84: 54 | K84: / | L84: / | M84: 60.82 | N84: 81.24 | O84: 71.03 | P84: 3 | W84: 14230202008002025 | X84: 12 | Y84: 6
A85: 黄石市直 | B85: 黄石市交通运输局 | C85: 办公室综合岗 | D85: 14230202008001023 | E85: 1 | F85: 万杰 | G85: 男 | H85: 142020101424 | I85: 74.4 | J85: 64.5 | K85: / | L85: / | M85: 69.945 | N85: 79.06 | O85: 74.5025 | P85: 1 | W85: 14230202008002026 | X85: 12 | Y85: 7
A86: 黄石市直 | B86: 黄石市交通运输局 | C86: 办公室综合岗 | D86: 14230202008001023 | E86: 1 | F86: 冯登 | G86: 男 | H86: 142020102323 | I86: 63.2 | J86: 72 | K86: / | L86: / | M86: 67.16 | N86: 77.94 | O86: 72.55 | P86: 2 | W86: 14230202008002027 | X86: 12 | Y86: 8
A87: 黄石市直 | B87: 黄石市交通运输局 | C87: 办公室综合岗 | D87: 14230202008001023 | E87: 1 | F87: 罗微 | G87: 男 | H87: 142020101017 | I87: 70.4 | J87: 65 | K87: / | L87: / | M87: 67.97 | N87: 68.62 | O87: 68.295 | P87: 3 | W87: 14230202008002028 | X87: 13 | Y87: 1
A88: 黄石市直 | B88: 黄石市科协 | C88: 综合管理岗 | D88: 14230202008001024 | E88: 1 | F88: 徐良 | G88: 男 | H88: 142020101914 | I88: 72 | J88: 68 | K88: / | L88: / | M88: 70.2 | N88: 80.48 | O88: 75.34 | P88: 1 | W88: 14230202008002029 | X88: 13 | Y88: 2
A89: 黄石市直 | B89: 黄石市科协 | C89: 综合管理岗 | D89: 14230202008001024 | E89: 1 | F89: 陈明轩 | G89: 男 | H89: 142020104223 | I89: 72.8 | J89: 63.5 | K89: / | L89: / | M89: 68.615 | N89: 77.46 | O89: 73.0375 | P89: 2 | W89: 14230202008002030 | X89: 13 | Y89: 3
A90: 黄石市直 | B90: 黄石市科协 | C90: 综合管理岗 | D90: 14230202008001024 | E90: 1 | F90: 江仕源 | G90: 男 | H90: 142020105418 | I90: 67.2 | J90: 70.5 | K90: / | L90: / | M90: 68.685 | N90: 75.9 | O90: 72.2925 | P90: 3 | W90: 14230202008002031 | X90: 13 | Y90: 4
A91: 黄石市直 | B91: 黄石市委党校 | C91: 综合管理岗 | D91: 14230202008001025 | E91: 1 | F91: 邱玉芳 | G91: 女 | H91: 142020106106 | I91: 71.2 | J91: 69.5 | K91: / | L91: / | M91: 70.435 | N91: 76.66 | O91: 73.5475 | P91: 1 | W91: 14230202008002032 | X91: 13 | Y91: 5
A92: 黄石市直 | B92: 黄石市委党校 | C92: 综合管理岗 | D92: 14230202008001025 | E92: 1 | F92: 吴晓 | G92: 男 | H92: 142020106505 | I92: 65.6 | J92: 75.5 | K92: / | L92: / | M92: 70.055 | N92: 77.02 | O92: 73.5375 | P92: 2 | W92: 14230202008002033 | X92: 13 | Y92: 6
A93: 黄石市直 | B93: 黄石市委党校 | C93: 综合管理岗 | D93: 14230202008001025 | E93: 1 | F93: 邓烨 | G93: 男 | H93: 142020105709 | I93: 60 | J93: 68.5 | K93: / | L93: / | M93: 63.825 | N93: 77.38 | O93: 70.6025 | P93: 3 | W93: 14230202008002034 | X93: 13 | Y93: 7
A94: 黄石市直 | B94: 黄石市档案馆 | C94: 档案科技信息岗 | D94: 14230202008001026 | E94: 1 | F94: 陆婷 | G94: 女 | H94: 142020100609 | I94: 75.2 | J94: 65.5 | K94: / | L94: / | M94: 70.835 | N94: 79.68 | O94: 75.2575 | P94: 1 | W94: 14230202008002035 | X94: 13 | Y94: 8
A95: 黄石市直 | B95: 黄石市档案馆 | C95: 档案科技信息岗 | D95: 14230202008001026 | E95: 1 | F95: 顾景阳 | G95: 男 | H95: 142020101115 | I95: 73.6 | J95: 67.5 | K95: / | L95: / | M95: 70.855 | N95: 78.02 | O95: 74.4375 | P95: 2 | W95: 14230202008002036 | X95: 13 | Y95: 9
A96: 黄石市直 | B96: 黄石市档案馆 | C96: 档案科技信息岗 | D96: 14230202008001026 | E96: 1 | F96: 张斯越 | G96: 女 | H96: 142020100414 | I96: 74.4 | J96: 70 | K96: / | L96: / | M96: 72.42 | N96: 76.02 | O96: 74.22 | P96: 3 | W96: 14230202008002037 | X96: 13 | Y96: 10
A97: 黄石市直 | B97: 黄石市档案馆 | C97: 文字综合岗 | D97: 14230202008001027 | E97: 1 | F97: 邱龙盛 | G97: 男 | H97: 142020106708 | I97: 80.8 | J97: 68.5 | K97: / | L97: / | M97: 75.265 | N97: 78.14 | O97: 76.7025 | P97: 1 | W97: 14230202008002038 | X97: 14 | Y97: 1
A98: 黄石市直 | B98: 黄石市档案馆 | C98: 文字综合岗 | D98: 14230202008001027 | E98: 1 | F98: 陈聪 | G98: 男 | H98: 142020101501 | I98: 66.4 | J98: 72 | K98: / | L98: / | M98: 68.92 | N98: 77.02 | O98: 72.97 | P98: 2 | W98: 14230202008002039 | X98: 14 | Y98: 2
A99: 黄石市直 | B99: 黄石市档案馆 | C99: 文字综合岗 | D99: 14230202008001027 | E99: 1 | F99: 盛婉云 | G99: 女 | H99: 142020101401 | I99: 62.4 | J99: 72.5 | K99: / | L99: / | M99: 66.945 | N99: 75.1 | O99: 71.0225 | P99: 3 | W99: 14230202008002040 | X99: 14 | Y99: 3
A100: 黄石市直 | B100: 黄石市档案馆 | C100: 编研岗 | D100: 14230202008001028 | E100: 1 | F100: 陈雪平 | G100: 女 | H100: 142020101327 | I100: 73.6 | J100: 74 | K100: / | L100: / | M100: 73.78 | N100: 83.46 | O100: 78.62 | P100: 1 | W100: 14230202008002041 | X100: 14 | Y100: 4
A101: 黄石市直 | B101: 黄石市档案馆 | C101: 编研岗 | D101: 14230202008001028 | E101: 1 | F101: 冯隆傲 | G101: 男 | H101: 142020102903 | I101: 70.4 | J101: 76.5 | K101: / | L101: / | M101: 73.145 | N101: 79.1 | O101: 76.1225 | P101: 2 | W101: 14230202008002042 | X101: 14 | Y101: 5
A102: 黄石市直 | B102: 黄石市档案馆 | C102: 编研岗 | D102: 14230202008001028 | E102: 1 | F102: 肖意 | G102: 女 | H102: 142020101313 | I102: 62.4 | J102: 74 | K102: / | L102: / | M102: 67.62 | N102: 75.28 | O102: 71.45 | P102: 3 | W102: 14230202008002043 | X102: 14 | Y102: 6
A103: 黄石市直 | B103: 黄石市港口物流发展中心 | C103: 综合管理岗 | D103: 14230202008001029 | E103: 2 | F103: 尹华芳 | G103: 女 | H103: 142020103423 | I103: 64.8 | J103: 81.5 | K103: / | L103: / | M103: 72.315 | N103: 79.8 | O103: 76.0575 | P103: 1 | W103: 14230202008002044 | X103: 14 | Y103: 7
A104: 黄石市直 | B104: 黄石市港口物流发展中心 | C104: 综合管理岗 | D104: 14230202008001029 | E104: 2 | F104: 胡凯华 | G104: 男 | H104: 142020103725 | I104: 71.2 | J104: 70.5 | K104: / | L104: / | M104: 70.885 | N104: 81.1 | O104: 75.9925 | P104: 2 | W104: 14230202008002045 | X104: 14 | Y104: 8
A105: 黄石市直 | B105: 黄石市港口物流发展中心 | C105: 综合管理岗 | D105: 14230202008001029 | E105: 2 | F105: 彭文娟 | G105: 女 | H105: 142020100708 | I105: 64.8 | J105: 77.5 | K105: / | L105: / | M105: 70.515 | N105: 76.76 | O105: 73.6375 | P105: 3 | W105: 14230202008002046 | X105: 14 | Y105: 9
A106: 黄石市直 | B106: 黄石市港口物流发展中心 | C106: 综合管理岗 | D106: 14230202008001029 | E106: 2 | F106: 余卓琳 | G106: 女 | H106: 142020101814 | I106: 76 | J106: 72 | K106: / | L106: / | M106: 74.2 | N106: 73.02 | O106: 73.61 | P106: 4 | W106: 14230202008002048 | X106: 15 | Y106: 1
A107: 黄石市直 | B107: 黄石市港口物流发展中心 | C107: 综合管理岗 | D107: 14230202008001029 | E107: 2 | F107: 国鸿宇 | G107: 女 | H107: 142020102610 | I107: 72 | J107: 70.5 | K107: / | L107: / | M107: 71.325 | N107: 74.86 | O107: 73.0925 | P107: 5 | W107: 14230202008002049 | X107: 15 | Y107: 2
A108: 黄石市直 | B108: 黄石市港口物流发展中心 | C108: 综合管理岗 | D108: 14230202008001029 | E108: 2 | F108: 刘思 | G108: 女 | H108: 142020104816 | I108: 69.6 | J108: 71 | K108: / | L108: / | M108: 70.23 | N108: 74.04 | O108: 72.135 | P108: 6 | W108: 14230202008002050 | X108: 15 | Y108: 3
A109: 黄石市直 | B109: 黄石市社科联 | C109: 综合管理岗 | D109: 14230202008001030 | E109: 2 | F109: 曾亦淳 | G109: 女 | H109: 142020105602 | I109: 64 | J109: 76.5 | K109: / | L109: / | M109: 69.625 | N109: 81.08 | O109: 75.3525 | P109: 1 | W109: 14230202008002051 | X109: 15 | Y109: 4
A110: 黄石市直 | B110: 黄石市社科联 | C110: 综合管理岗 | D110: 14230202008001030 | E110: 2 | F110: 鞠小康 | G110: 女 | H110: 142020101701 | I110: 62.4 | J110: 75 | K110: / | L110: / | M110: 68.07 | N110: 82.3 | O110: 75.185 | P110: 2 | W110: 14230202008002052 | X110: 15 | Y110: 5
A111: 黄石市直 | B111: 黄石市社科联 | C111: 综合管理岗 | D111: 14230202008001030 | E111: 2 | F111: 纪霞 | G111: 女 | H111: 142020103110 | I111: 62.4 | J111: 73.5 | K111: / | L111: / | M111: 67.395 | N111: 77.8 | O111: 72.5975 | P111: 3 | W111: 14230202008003012 | X111: 15 | Y111: 6
A112: 黄石市直 | B112: 黄石市社科联 | C112: 综合管理岗 | D112: 14230202008001030 | E112: 2 | F112: 汪清泉 | G112: 女 | H112: 142020103229 | I112: 60 | J112: 74.5 | K112: / | L112: / | M112: 66.525 | N112: 78.66 | O112: 72.5925 | P112: 4 | W112: 14230202008003013 | X112: 15 | Y112: 7
A113: 黄石市直 | B113: 黄石市社科联 | C113: 综合管理岗 | D113: 14230202008001030 | E113: 2 | F113: 程正坤 | G113: 男 | H113: 142020105423 | I113: 68 | J113: 62.5 | K113: / | L113: / | M113: 65.525 | N113: 78.28 | O113: =M113*0.5+N113*0.5 -> 71.9025 | P113: 5 | W113: 14230202008003017 | X113: 15 | Y113: 8
A114: 黄石市直 | B114: 黄石市社科联 | C114: 综合管理岗 | D114: 14230202008001030 | E114: 2 | F114: 柯于娟 | G114: 女 | H114: 142020100813 | I114: 60.8 | J114: 72.5 | K114: / | L114: / | M114: 66.065 | N114: 76.34 | O114: 71.2025 | P114: 6 | W114: 14230202008003018 | X114: 15 | Y114: 9
A115: 黄石市直 | B115: 黄石市人民政府驻上海联络处（市人民政府驻华东联络处） | C115: 综合管理岗 | D115: 14230202008001031 | E115: 1 | F115: 张肖 | G115: 女 | H115: 142020101917 | I115: 68 | J115: 69.5 | K115: / | L115: / | M115: 68.675 | N115: 81.22 | O115: 74.9475 | P115: 1 | W115: 14230202008003022 | X115: 15 | Y115: 10
A116: 黄石市直 | B116: 黄石市人民政府驻上海联络处（市人民政府驻华东联络处） | C116: 综合管理岗 | D116: 14230202008001031 | E116: 1 | F116: 李鑫 | G116: 女 | H116: 142020106002 | I116: 63.2 | J116: 75 | K116: / | L116: / | M116: 68.51 | N116: 78.26 | O116: 73.385 | P116: 2 | W116: 14230202008003019 | X116: 16 | Y116: 1
A117: 黄石市直 | B117: 黄石市人民政府驻上海联络处（市人民政府驻华东联络处） | C117: 综合管理岗 | D117: 14230202008001031 | E117: 1 | F117: 马叶茹 | G117: 女 | H117: 142020100321 | I117: 70.4 | J117: 70.5 | K117: / | L117: / | M117: 70.445 | N117: 73.42 | O117: 71.9325 | P117: 3 | W117: 14230202008003020 | X117: 16 | Y117: 2
A118: 黄石市直 | B118: 黄石市国库集中收付局 | C118: 财政业务管理岗 | D118: 14230202008001032 | E118: 2 | F118: 简彤 | G118: 男 | H118: 142020103708 | I118: 72.8 | J118: 69 | K118: / | L118: / | M118: 71.09 | N118: 80.52 | O118: 75.805 | P118: 1 | W118: 14230202008003021 | X118: 16 | Y118: 3
A119: 黄石市直 | B119: 黄石市国库集中收付局 | C119: 财政业务管理岗 | D119: 14230202008001032 | E119: 2 | F119: 胡文杰 | G119: 男 | H119: 142020105015 | I119: 65.6 | J119: 71 | K119: / | L119: / | M119: 68.03 | N119: 83.22 | O119: 75.625 | P119: 2 | W119: 14230202008003023 | X119: 16 | Y119: 4
A120: 黄石市直 | B120: 黄石市国库集中收付局 | C120: 财政业务管理岗 | D120: 14230202008001032 | E120: 2 | F120: 魏雯 | G120: 女 | H120: 142020105719 | I120: 66.4 | J120: 66.5 | K120: / | L120: / | M120: 66.445 | N120: 78.48 | O120: 72.4625 | P120: 3 | W120: 14230202008003024 | X120: 16 | Y120: 5
A121: 黄石市直 | B121: 黄石市国库集中收付局 | C121: 财政业务管理岗 | D121: 14230202008001032 | E121: 2 | F121: 叶波 | G121: 男 | H121: 142020106304 | I121: 59.2 | J121: 69.5 | K121: / | L121: / | M121: 63.835 | N121: 77.06 | O121: 70.4475 | P121: 4 | W121: 14230202008003025 | X121: 16 | Y121: 6
A122: 黄石市直 | B122: 黄石市国库集中收付局 | C122: 财政业务管理岗 | D122: 14230202008001032 | E122: 2 | F122: 杜炫 | G122: 女 | H122: 142020105118 | I122: 67.2 | J122: 60 | K122: / | L122: / | M122: 63.96 | N122: 74.86 | O122: 69.41 | P122: 5 | W122: 14230202008003026 | X122: 16 | Y122: 7
A123: 黄石市直 | B123: 黄石市国库集中收付局 | C123: 财政业务管理岗 | D123: 14230202008001032 | E123: 2 | F123: 张圣宇 | G123: 女 | H123: 142020104502 | I123: 60.8 | J123: 70 | K123: / | L123: / | M123: 64.94 | N123: 69.52 | O123: 67.23 | P123: 6 | W123: 14230202008003027 | X123: 16 | Y123: 8
A124: 黄石市直 | B124: 黄石市非税收入管理局 | C124: 财政业务管理岗 | D124: 14230202008001033 | E124: 1 | F124: 覃世林 | G124: 男 | H124: 142020106007 | I124: 68.8 | J124: 70.5 | K124: / | L124: / | M124: 69.565 | N124: 79.72 | O124: 74.6425 | P124: 1 | W124: 14230202008003028 | X124: 16 | Y124: 9
A125: 黄石市直 | B125: 黄石市非税收入管理局 | C125: 财政业务管理岗 | D125: 14230202008001033 | E125: 1 | F125: 张秋华 | G125: 女 | H125: 142020104304 | I125: 59.2 | J125: 62 | K125: / | L125: / | M125: 60.46 | N125: 79.8 | O125: 70.13 | P125: 2 | W125: 14230202008003029 | X125: 17 | Y125: 1
A126: 黄石市直 | B126: 黄石市非税收入管理局 | C126: 财政业务管理岗 | D126: 14230202008001033 | E126: 1 | F126: 马哲明 | G126: 男 | H126: 142020106027 | I126: 64 | J126: 48 | K126: / | L126: / | M126: 56.8 | N126: 79.64 | O126: 68.22 | P126: 3 | W126: 14230202008003030 | X126: 17 | Y126: 2
A127: 黄石市直 | B127: 黄石市政府采购管理办公室 | C127: 财政业务管理岗 | D127: 14230202008001034 | E127: 1 | F127: 李天阳 | G127: 男 | H127: 142020103207 | I127: 66.4 | J127: 66 | K127: / | L127: / | M127: 66.22 | N127: 77.76 | O127: 71.99 | P127: 1 | W127: 14230202008003031 | X127: 17 | Y127: 3
A128: 黄石市直 | B128: 黄石市政府采购管理办公室 | C128: 财政业务管理岗 | D128: 14230202008001034 | E128: 1 | F128: 曹佳玮 | G128: 女 | H128: 142020105929 | I128: 58.4 | J128: 64.5 | K128: / | L128: / | M128: 61.145 | N128: 76.74 | O128: 68.9425 | P128: 2 | W128: 14230202008003032 | X128: 17 | Y128: 4
A129: 黄石市直 | B129: 黄石市政府采购管理办公室 | C129: 财政业务管理岗 | D129: 14230202008001034 | E129: 1 | F129: 张友炯 | G129: 男 | H129: 142020105309 | I129: 55.2 | J129: 69.5 | K129: / | L129: / | M129: 61.635 | N129: 74.36 | O129: 67.9975 | P129: 3 | W129: 14230202008003033 | X129: 17 | Y129: 5
A130: 黄石市直 | B130: 黄石市社保局 | C130: 综合管理岗 | D130: 14230202008001035 | E130: 2 | F130: 肖作玉 | G130: 男 | H130: 142020105012 | I130: 78.4 | J130: 74 | K130: / | L130: / | M130: 76.42 | N130: 80.78 | O130: 78.6 | P130: 1 | W130: 14230202008003034 | X130: 17 | Y130: 6
A131: 黄石市直 | B131: 黄石市社保局 | C131: 综合管理岗 | D131: 14230202008001035 | E131: 2 | F131: 程冉 | G131: 女 | H131: 142020105020 | I131: 68.8 | J131: 73.5 | K131: / | L131: / | M131: 70.915 | N131: 83.54 | O131: 77.2275 | P131: 2 | W131: 14230202008003035 | X131: 17 | Y131: 7
A132: 黄石市直 | B132: 黄石市社保局 | C132: 综合管理岗 | D132: 14230202008001035 | E132: 2 | F132: 陶波 | G132: 女 | H132: 142020103921 | I132: 68.8 | J132: 71.5 | K132: / | L132: / | M132: 70.015 | N132: 79.72 | O132: 74.8675 | P132: 3 | W132: 14230202008003036 | X132: 17 | Y132: 8
A133: 黄石市直 | B133: 黄石市社保局 | C133: 综合管理岗 | D133: 14230202008001035 | E133: 2 | F133: 林丹 | G133: 女 | H133: 142020105013 | I133: 71.2 | J133: 71 | K133: / | L133: / | M133: 71.11 | N133: 76.94 | O133: 74.025 | P133: 4 | W133: 14230202008003037 | X133: 17 | Y133: 9
A134: 黄石市直 | B134: 黄石市社保局 | C134: 综合管理岗 | D134: 14230202008001035 | E134: 2 | F134: 李雯 | G134: 女 | H134: 142020100312 | I134: 69.6 | J134: 64 | K134: / | L134: / | M134: 67.08 | N134: 80.2 | O134: 73.64 | P134: 5 | W134: 14230202008003038 | X134: 17 | Y134: 10
A135: 黄石市直 | B135: 黄石市社保局 | C135: 综合管理岗 | D135: 14230202008001035 | E135: 2 | F135: 易承萱 | G135: 女 | H135: 142020100803 | I135: 64.8 | J135: 70.5 | K135: / | L135: / | M135: 67.365 | N135: 76.4 | O135: 71.8825 | P135: 6 | W135: 14230202008003039 | X135: 18 | Y135: 1
A136: 黄石市直 | B136: 黄石市社保局 | C136: 业务综合岗 | D136: 14230202008001037 | E136: 1 | F136: 陈耀华 | G136: 男 | H136: 142020103409 | I136: 59.2 | J136: 72.5 | K136: / | L136: / | M136: 65.185 | N136: 79.16 | O136: 72.1725 | P136: 1 | W136: 14230202008003040 | X136: 18 | Y136: 2
A137: 黄石市直 | B137: 黄石市社保局 | C137: 业务综合岗 | D137: 14230202008001037 | E137: 1 | F137: 徐秋红 | G137: 女 | H137: 142020102307 | I137: 53.6 | J137: 67 | K137: / | L137: / | M137: 59.63 | N137: 75.88 | O137: 67.755 | P137: 2 | W137: 14230202008003041 | X137: 18 | Y137: 3
A138: 黄石市直 | B138: 黄石市社保局 | C138: 业务综合岗 | D138: 14230202008001037 | E138: 1 | F138: 彭倩 | G138: 女 | H138: 142020106303 | I138: 55.2 | J138: 65 | K138: / | L138: / | M138: 59.61 | N138: 72.74 | O138: 66.175 | P138: 3 | W138: 14230202008003042 | X138: 18 | Y138: 4
A139: 黄石市直 | B139: 黄石市劳动人事争议仲裁院 | C139: 业务综合岗 | D139: 14230202008001038 | E139: 2 | F139: 陶敏 | G139: 女 | H139: 142020105612 | I139: 67.2 | J139: 72.5 | K139: / | L139: / | M139: 69.585 | N139: 80.38 | O139: 74.9825 | P139: 1 | W139: 14230202008003043 | X139: 18 | Y139: 5
A140: 黄石市直 | B140: 黄石市劳动人事争议仲裁院 | C140: 业务综合岗 | D140: 14230202008001038 | E140: 2 | F140: 庄子尧 | G140: 男 | H140: 142020106413 | I140: 67.2 | J140: 71 | K140: / | L140: / | M140: 68.91 | N140: 81.04 | O140: 74.975 | P140: 2 | W140: 14230202008003044 | X140: 18 | Y140: 6
A141: 黄石市直 | B141: 黄石市劳动人事争议仲裁院 | C141: 业务综合岗 | D141: 14230202008001038 | E141: 2 | F141: 柯璐 | G141: 女 | H141: 142020104426 | I141: 68 | J141: 62.5 | K141: / | L141: / | M141: 65.525 | N141: 83.94 | O141: 74.7325 | P141: 3 | W141: 14230202008003045 | X141: 18 | Y141: 7
A142: 黄石市直 | B142: 黄石市劳动人事争议仲裁院 | C142: 业务综合岗 | D142: 14230202008001038 | E142: 2 | F142: 陈锋 | G142: 男 | H142: 142020101828 | I142: 65.6 | J142: 69 | K142: / | L142: / | M142: 67.13 | N142: 82.32 | O142: 74.725 | P142: 4 | W142: 14230202008003048 | X142: 18 | Y142: 8
A143: 黄石市直 | B143: 黄石市劳动人事争议仲裁院 | C143: 业务综合岗 | D143: 14230202008001038 | E143: 2 | F143: 祝颖华 | G143: 男 | H143: 142020102518 | I143: 64.8 | J143: 68 | K143: / | L143: / | M143: 66.24 | N143: 81.34 | O143: 73.79 | P143: 5 | W143: 14230202008003049 | X143: 18 | Y143: 9
A144: 黄石市直 | B144: 黄石市劳动人事争议仲裁院 | C144: 业务综合岗 | D144: 14230202008001038 | E144: 2 | F144: 刘思敏 | G144: 女 | H144: 142020105819 | I144: 63.2 | J144: 72 | K144: / | L144: / | M144: 67.16 | N144: 79.86 | O144: 73.51 | P144: 6 | W144: 14230202008003046 | X144: 19 | Y144: 1
A145: 黄石市直 | B145: 黄石市河道堤防管理局 | C145: 办公室综合岗 | D145: 14230202008001039 | E145: 1 | F145: 孙青 | G145: 女 | H145: 142020102515 | I145: 68.8 | J145: 71.5 | K145: / | L145: / | M145: 70.015 | N145: 83.66 | O145: 76.8375 | P145: 1 | W145: 14230202008003047 | X145: 19 | Y145: 2
A146: 黄石市直 | B146: 黄石市河道堤防管理局 | C146: 办公室综合岗 | D146: 14230202008001039 | E146: 1 | F146: 谈画琳 | G146: 女 | H146: 142020102303 | I146: 65.6 | J146: 73 | K146: / | L146: / | M146: 68.93 | N146: 82.2 | O146: 75.565 | P146: 2 | W146: 14230202008003050 | X146: 19 | Y146: 3
A147: 黄石市直 | B147: 黄石市河道堤防管理局 | C147: 办公室综合岗 | D147: 14230202008001039 | E147: 1 | F147: 方博 | G147: 男 | H147: 142020106522 | I147: 68.8 | J147: 70 | K147: / | L147: / | M147: 69.34 | N147: 79.44 | O147: 74.39 | P147: 3 | W147: 14230202008003051 | X147: 19 | Y147: 4
A148: 黄石市直 | B148: 黄石市河道堤防管理局 | C148: 综合管理岗 | D148: 14230202008001040 | E148: 1 | F148: 胡盼 | G148: 女 | H148: 142020104417 | I148: 65.6 | J148: 71 | K148: / | L148: / | M148: 68.03 | N148: 83.46 | O148: 75.745 | P148: 1 | W148: 14230202008003052 | X148: 19 | Y148: 5
A149: 黄石市直 | B149: 黄石市河道堤防管理局 | C149: 综合管理岗 | D149: 14230202008001040 | E149: 1 | F149: 周晨 | G149: 女 | H149: 142020101008 | I149: 68 | J149: 71 | K149: / | L149: / | M149: 69.35 | N149: 80.6 | O149: 74.975 | P149: 2 | W149: 14230202008003053 | X149: 19 | Y149: 6
A150: 黄石市直 | B150: 黄石市河道堤防管理局 | C150: 综合管理岗 | D150: 14230202008001040 | E150: 1 | F150: 张雯 | G150: 女 | H150: 142020102825 | I150: 67.2 | J150: 67.5 | K150: / | L150: / | M150: 67.335 | N150: 81.28 | O150: 74.3075 | P150: 3 | W150: 14230202008003054 | X150: 19 | Y150: 7
A151: 黄石市直 | B151: 黄石市河道堤防管理局 | C151: 堤防业务岗 | D151: 14230202008001041 | E151: 1 | F151: 张佳豪 | G151: 男 | H151: 142020103023 | I151: 67.2 | J151: 66 | K151: / | L151: / | M151: 66.66 | N151: 80.8 | O151: 73.73 | P151: 1 | W151: 14230202008003055 | X151: 20 | Y151: 1
A152: 黄石市直 | B152: 黄石市河道堤防管理局 | C152: 堤防业务岗 | D152: 14230202008001041 | E152: 1 | F152: 刘源 | G152: 男 | H152: 142020103007 | I152: 60.8 | J152: 76 | K152: / | L152: / | M152: 67.64 | N152: 79.76 | O152: 73.7 | P152: 2 | W152: 14230202008003056 | X152: 20 | Y152: 2
A153: 黄石市直 | B153: 黄石市河道堤防管理局 | C153: 堤防业务岗 | D153: 14230202008001041 | E153: 1 | F153: 何知远 | G153: 男 | H153: 142020104009 | I153: 57.6 | J153: 62.5 | K153: / | L153: / | M153: 59.805 | N153: 70.74 | O153: 65.2725 | P153: 3 | W153: 14230202008003057 | X153: 20 | Y153: 3
A154: 黄石市直 | B154: 黄石市农村饮水管理办 | C154: 综合管理岗 | D154: 14230202008001042 | E154: 1 | F154: 廖靓 | G154: 女 | H154: 142020104924 | I154: 69.6 | J154: 78 | K154: / | L154: / | M154: 73.38 | N154: 79.32 | O154: 76.35 | P154: 1 | W154: 14230202008004001 | X154: 20 | Y154: 4
A155: 黄石市直 | B155: 黄石市农村饮水管理办 | C155: 综合管理岗 | D155: 14230202008001042 | E155: 1 | F155: 石榴 | G155: 女 | H155: 142020100315 | I155: 69.6 | J155: 69.5 | K155: / | L155: / | M155: 69.555 | N155: 81.08 | O155: 75.3175 | P155: 2 | W155: 14230202008004002 | X155: 20 | Y155: 5
A156: 黄石市直 | B156: 黄石市农村饮水管理办 | C156: 综合管理岗 | D156: 14230202008001042 | E156: 1 | F156: 陈贝 | G156: 女 | H156: 142020103914 | I156: 71.2 | J156: 70 | K156: / | L156: / | M156: 70.66 | N156: 79.82 | O156: 75.24 | P156: 3 | W156: 14230202008004003 | X156: 20 | Y156: 6
A157: 黄石市直 | B157: 黄石市生态能源局 | C157: 综合管理岗 | D157: 14230202008001043 | E157: 1 | F157: 刘慧格 | G157: 女 | H157: 142020102318 | I157: 72 | J157: 71.5 | K157: / | L157: / | M157: 71.775 | N157: 83.48 | O157: 77.6275 | P157: 1 | W157: 14230202008004004 | X157: 20 | Y157: 7
A158: 黄石市直 | B158: 黄石市生态能源局 | C158: 综合管理岗 | D158: 14230202008001043 | E158: 1 | F158: 贺小萌 | G158: 女 | H158: 142020103628 | I158: 69.6 | J158: 72 | K158: / | L158: / | M158: 70.68 | N158: 79.66 | O158: 75.17 | P158: 2 | W158: 14230202008004005 | X158: 20 | Y158: 8
A159: 黄石市直 | B159: 黄石市生态能源局 | C159: 综合管理岗 | D159: 14230202008001043 | E159: 1 | F159: 王沁 | G159: 女 | H159: 142020105223 | I159: 70.4 | J159: 72.5 | K159: / | L159: / | M159: 71.345 | N159: 77.96 | O159: 74.6525 | P159: 3 | W159: 14230202008004006 | X159: 20 | Y159: 9
A160: 黄石市直 | B160: 黄石市医疗保障服务中心 | C160: 财务会计岗 | D160: 14230202008001046 | E160: 1 | F160: 江慧敏 | G160: 女 | H160: 142020105928 | I160: 70.4 | J160: 73 | K160: / | L160: / | M160: 71.57 | N160: 78.44 | O160: 75.005 | P160: 1 | W160: 14230202008004007 | X160: 21 | Y160: 1
A161: 黄石市直 | B161: 黄石市医疗保障服务中心 | C161: 财务会计岗 | D161: 14230202008001046 | E161: 1 | F161: 陈慧斯 | G161: 女 | H161: 142020105618 | I161: 73.6 | J161: 69.5 | K161: / | L161: / | M161: 71.755 | N161: 78.04 | O161: 74.8975 | P161: 2 | W161: 14230202008005005 | X161: 21 | Y161: 2
A162: 黄石市直 | B162: 黄石市医疗保障服务中心 | C162: 财务会计岗 | D162: 14230202008001046 | E162: 1 | F162: 吕琳 | G162: 女 | H162: 142020103122 | I162: 68 | J162: 67 | K162: / | L162: / | M162: 67.55 | N162: 77.36 | O162: 72.455 | P162: 3 | W162: 14230202008005007 | X162: 21 | Y162: 3
A163: 黄石市直 | B163: 黄石市医疗保障服务中心 | C163: 医疗管理岗 | D163: 14230202008001047 | E163: 1 | F163: 方学宝 | G163: 男 | H163: 142020101320 | I163: 76 | J163: 71 | K163: / | L163: / | M163: 73.75 | N163: 75.78 | O163: 74.765 | P163: 1 | W163: 14230202008005010 | X163: 21 | Y163: 4
A164: 黄石市直 | B164: 黄石市医疗保障服务中心 | C164: 医疗管理岗 | D164: 14230202008001047 | E164: 1 | F164: 汪文静 | G164: 女 | H164: 142020101825 | I164: 60.8 | J164: 72 | K164: / | L164: / | M164: 65.84 | N164: 75.22 | O164: 70.53 | P164: 2 | W164: 14230202008005011 | X164: 21 | Y164: 5
A165: 黄石市直 | B165: 黄石市医疗保障服务中心 | C165: 医疗管理岗 | D165: 14230202008001047 | E165: 1 | F165: 高渤 | G165: 男 | H165: 142020100413 | I165: 60.8 | J165: 73.5 | K165: / | L165: / | M165: 66.515 | N165: 缺考 | O165: =M165*0.5 -> 33.2575 | P165: 3 | W165: 14230202008005012 | X165: 21 | Y165: 6
A166: 黄石市直 | B166: 黄石市政务信息管理中心 | C166: 综合管理岗 | D166: 14230202008001048 | E166: 1 | F166: 石康 | G166: 男 | H166: 142020104611 | I166: 72.8 | J166: 70 | K166: / | L166: / | M166: 71.54 | N166: 83.1 | O166: =M166*0.5+N166*0.5 -> 77.32 | P166: 1 | W166: 14230202008005013 | X166: 31 | Y166: 1
A167: 黄石市直 | B167: 黄石市政务信息管理中心 | C167: 综合管理岗 | D167: 14230202008001048 | E167: 1 | F167: 张晋 | G167: 男 | H167: 142020103201 | I167: 77.6 | J167: 56.5 | K167: / | L167: / | M167: 68.105 | N167: 79.4 | O167: =M167*0.5+N167*0.5 -> 73.7525 | P167: 2 | W167: 14230202008005014 | X167: 31 | Y167: 2
A168: 黄石市直 | B168: 黄石市政务信息管理中心 | C168: 综合管理岗 | D168: 14230202008001048 | E168: 1 | F168: 倪汶 | G168: 男 | H168: 142020102211 | I168: 68 | J168: 65.5 | K168: / | L168: / | M168: 66.875 | N168: 缺考 | O168: =M168*0.5 -> 33.4375 | P168: 3 | W168: 14230202008006001 | X168: 31 | Y168: 3
A169: 黄石市直 | B169: 黄石市供销社 | C169: 综合管理岗 | D169: 14230202008001049 | E169: 1 | F169: 胡乔丹 | G169: 男 | H169: 142020102809 | I169: 78.4 | J169: 65 | K169: / | L169: / | M169: 72.37 | N169: 82.26 | O169: =M169*0.5+N169*0.5 -> 77.315 | P169: 1 | W169: 14230202008006002 | X169: 31 | Y169: 4
A170: 黄石市直 | B170: 黄石市供销社 | C170: 综合管理岗 | D170: 14230202008001049 | E170: 1 | F170: 明平坤 | G170: 男 | H170: 142020105127 | I170: 68.8 | J170: 72 | K170: / | L170: / | M170: 70.24 | N170: 78.94 | O170: 74.59 | P170: 2 | W170: 14230202008006003 | X170: 31 | Y170: 5
A171: 黄石市直 | B171: 黄石市供销社 | C171: 综合管理岗 | D171: 14230202008001049 | E171: 1 | F171: 胡益夫 | G171: 男 | H171: 142020106721 | I171: 68.8 | J171: 72 | K171: / | L171: / | M171: 70.24 | N171: 78.64 | O171: 74.44 | P171: 3 | W171: 14230202008006004 | X171: 31 | Y171: 6
A172: 黄石市直 | B172: 黄石市网络信访中心 | C172: 业务综合岗1 | D172: 14230202008001051 | E172: 1 | F172: 付方文 | G172: 男 | H172: 142020101725 | I172: 60.8 | J172: 69.5 | K172: / | L172: / | M172: 64.715 | N172: 83.36 | O172: 74.0375 | P172: 1 | W172: 14230202008006008 | X172: 31 | Y172: 7
A173: 黄石市直 | B173: 黄石市网络信访中心 | C173: 业务综合岗1 | D173: 14230202008001051 | E173: 1 | F173: 张兰 | G173: 女 | H173: 142020102109 | I173: 62.4 | J173: 67 | K173: / | L173: / | M173: 64.47 | N173: 80.3 | O173: 72.385 | P173: 2 | W173: 14230202008006009 | X173: 31 | Y173: 8
A174: 黄石市直 | B174: 黄石市网络信访中心 | C174: 业务综合岗1 | D174: 14230202008001051 | E174: 1 | F174: 吴子略 | G174: 男 | H174: 142020102511 | I174: 63.2 | J174: 68 | K174: / | L174: / | M174: 65.36 | N174: 76.06 | O174: 70.71 | P174: 3 | W174: 14230202008010003 | X174: 32 | Y174: 1
A175: 黄石市直 | B175: 黄石市网络信访中心 | C175: 业务综合岗2 | D175: 14230202008001052 | E175: 2 | F175: 明灿灿 | G175: 男 | H175: 142020105801 | I175: 71.2 | J175: 64.5 | K175: / | L175: / | M175: 68.185 | N175: 79.5 | O175: 73.8425 | P175: 1 | W175: 14230202008010004 | X175: 32 | Y175: 2
A176: 黄石市直 | B176: 黄石市网络信访中心 | C176: 业务综合岗2 | D176: 14230202008001052 | E176: 2 | F176: 周志武 | G176: 男 | H176: 142020105409 | I176: 66.4 | J176: 61 | K176: / | L176: / | M176: 63.97 | N176: 79.3 | O176: 71.635 | P176: 2 | W176: 14230202008010005 | X176: 32 | Y176: 3
A177: 黄石市直 | B177: 黄石市网络信访中心 | C177: 业务综合岗2 | D177: 14230202008001052 | E177: 2 | F177: 邱锋 | G177: 男 | H177: 142020101920 | I177: 65.6 | J177: 63.5 | K177: / | L177: / | M177: 64.655 | N177: 76.58 | O177: 70.6175 | P177: 3 | W177: 14230202008010006 | X177: 32 | Y177: 4
A178: 黄石市直 | B178: 黄石市网络信访中心 | C178: 业务综合岗2 | D178: 14230202008001052 | E178: 2 | F178: 奚龙 | G178: 男 | H178: 142020104915 | I178: 54.4 | J178: 76.5 | K178: / | L178: / | M178: 64.345 | N178: 76.88 | O178: 70.6125 | P178: 4 | W178: 14230202008010007 | X178: 33 | Y178: 1
A179: 黄石市直 | B179: 黄石市网络信访中心 | C179: 业务综合岗2 | D179: 14230202008001052 | E179: 2 | F179: 隋冬婷 | G179: 女 | H179: 142020103905 | I179: 63.2 | J179: 63 | K179: / | L179: / | M179: 63.11 | N179: 78 | O179: 70.555 | P179: 5 | W179: 14230202008010008 | X179: 33 | Y179: 2
A180: 黄石市直 | B180: 黄石市网络信访中心 | C180: 业务综合岗2 | D180: 14230202008001052 | E180: 2 | F180: 杨皓 | G180: 男 | H180: 142020101004 | I180: 65.6 | J180: 63 | K180: / | L180: / | M180: 64.43 | N180: 75.08 | O180: 69.755 | P180: 6 | W180: 14230202008010009 | X180: 33 | Y180: 3
A181: 黄石市直 | B181: 黄石市市政公用局 | C181: 市政设施管理岗 | D181: 14230202008001053 | E181: 1 | F181: 王坤 | G181: 男 | H181: 142020103928 | I181: 64.8 | J181: 67 | K181: / | L181: / | M181: 65.79 | N181: 77.52 | O181: 71.655 | P181: 1 | W181: 14230202008010010 | X181: 33 | Y181: 4
A182: 黄石市直 | B182: 黄石市市政公用局 | C182: 市政设施管理岗 | D182: 14230202008001053 | E182: 1 | F182: 刘合 | G182: 男 | H182: 142020103106 | I182: 60.8 | J182: 71.5 | K182: / | L182: / | M182: 65.615 | N182: 76.92 | O182: 71.2675 | P182: 2 | W182: 14230202008006010 | X182: 33 | Y182: 5
A183: 黄石市直 | B183: 黄石市市政公用局 | C183: 市政设施管理岗 | D183: 14230202008001053 | E183: 1 | F183: 李万年 | G183: 男 | H183: 142020104126 | I183: 68 | J183: 71.5 | K183: / | L183: / | M183: 69.575 | N183: 缺考 | O183: =M183*0.5 -> 34.7875 | P183: 3 | W183: 14230202008010011 | X183: 34 | Y183: 1
A184: 黄石市直 | B184: 黄石市自然资源综合执法支队 | C184: 文字综合岗1 | D184: 14230202008001054 | E184: 1 | F184: 郑成 | G184: 男 | H184: 142020105327 | I184: 66.4 | J184: 68.5 | K184: / | L184: / | M184: 67.345 | N184: 78.7 | O184: =M184*0.5+N184*0.5 -> 73.0225 | P184: 1 | W184: 14230202008010012 | X184: 34 | Y184: 2
A185: 黄石市直 | B185: 黄石市自然资源综合执法支队 | C185: 文字综合岗1 | D185: 14230202008001054 | E185: 1 | F185: 张阳亮 | G185: 男 | H185: 142020105503 | I185: 62.4 | J185: 68.5 | K185: / | L185: / | M185: 65.145 | N185: 76.36 | O185: 70.7525 | P185: 2 | W185: 14230202008010013 | X185: 34 | Y185: 3
A186: 黄石市直 | B186: 黄石市自然资源综合执法支队 | C186: 文字综合岗1 | D186: 14230202008001054 | E186: 1 | F186: 徐子薇 | G186: 女 | H186: 142020100910 | I186: 64 | J186: 69 | K186: / | L186: / | M186: 66.25 | N186: 74.76 | O186: 70.505 | P186: 3 | W186: 14230202008010014 | X186: 34 | Y186: 4
A187: 黄石市直 | B187: 黄石市自然资源综合执法支队 | C187: 文字综合岗2 | D187: 14230202008001055 | E187: 1 | F187: 张严斤 | G187: 女 | H187: 142020101030 | I187: 70.4 | J187: 70.5 | K187: / | L187: / | M187: 70.445 | N187: 80.08 | O187: 75.2625 | P187: 1 | W187: 14230202008010015 | X187: 34 | Y187: 5
A188: 黄石市直 | B188: 黄石市自然资源综合执法支队 | C188: 文字综合岗2 | D188: 14230202008001055 | E188: 1 | F188: 刘卫 | G188: 男 | H188: 142020104810 | I188: 69.6 | J188: 63.5 | K188: / | L188: / | M188: 66.855 | N188: 77.86 | O188: 72.3575 | P188: 2 | W188: 14230202008010016 | X188: 35 | Y188: 1
A189: 黄石市直 | B189: 黄石市自然资源综合执法支队 | C189: 文字综合岗2 | D189: 14230202008001055 | E189: 1 | F189: 张洁 | G189: 女 | H189: 142020104206 | I189: 66.4 | J189: 67 | K189: / | L189: / | M189: 66.67 | N189: 75.42 | O189: 71.045 | P189: 3 | W189: 14230202008010018 | X189: 35 | Y189: 2
A190: 黄石市直 | B190: 黄石市自然资源综合执法支队 | C190: 规划管理岗1 | D190: 14230202008001057 | E190: 2 | F190: 郑鑫禹 | G190: 女 | H190: 142020105617 | I190: 72.8 | J190: 73.5 | K190: / | L190: / | M190: 73.115 | N190: 77.48 | O190: 75.2975 | P190: 1 | W190: 14230202008010019 | X190: 35 | Y190: 3
A191: 黄石市直 | B191: 黄石市自然资源综合执法支队 | C191: 规划管理岗1 | D191: 14230202008001057 | E191: 2 | F191: 程娟 | G191: 女 | H191: 142020100628 | I191: 71.2 | J191: 68 | K191: / | L191: / | M191: 69.76 | N191: 78.28 | O191: 74.02 | P191: 2 | W191: 14230202008010020 | X191: 35 | Y191: 4
A192: 黄石市直 | B192: 黄石市自然资源综合执法支队 | C192: 规划管理岗1 | D192: 14230202008001057 | E192: 2 | F192: 马思聪 | G192: 男 | H192: 142020100801 | I192: 65.6 | J192: 66 | K192: / | L192: / | M192: 65.78 | N192: 79.96 | O192: 72.87 | P192: 3 | W192: 14230202008010021 | X192: 36 | Y192: 1
A193: 黄石市直 | B193: 黄石市自然资源综合执法支队 | C193: 规划管理岗1 | D193: 14230202008001057 | E193: 2 | F193: 徐芳 | G193: 女 | H193: 142020100901 | I193: 58.4 | J193: 73.5 | K193: / | L193: / | M193: 65.195 | N193: 75.66 | O193: 70.4275 | P193: 4 | W193: 14230202008010022 | X193: 36 | Y193: 2
A194: 黄石市直 | B194: 黄石市自然资源综合执法支队 | C194: 规划管理岗1 | D194: 14230202008001057 | E194: 2 | F194: 李国杰 | G194: 男 | H194: 142020101329 | I194: 66.4 | J194: 64.5 | K194: / | L194: / | M194: 65.545 | N194: 75.08 | O194: 70.3125 | P194: 5 | W194: 14230202008010023 | X194: 36 | Y194: 3
A195: 黄石市直 | B195: 黄石市自然资源综合执法支队 | C195: 规划管理岗1 | D195: 14230202008001057 | E195: 2 | F195: 陈峰 | G195: 男 | H195: 142020102904 | I195: 64 | J195: 66 | K195: / | L195: / | M195: 64.9 | N195: 73.04 | O195: 68.97 | P195: 6 | W195: 14230202008010024 | X195: 36 | Y195: 4
A196: 黄石市直 | B196: 黄石市自然资源综合执法支队 | C196: 规划管理岗2 | D196: 14230202008001058 | E196: 1 | F196: 陈强 | G196: 男 | H196: 142020103422 | I196: 58.4 | J196: 76 | K196: / | L196: / | M196: 66.32 | N196: 80.7 | O196: 73.51 | P196: 1 | W196: 14230202008010025 | X196: 36 | Y196: 5
A197: 黄石市直 | B197: 黄石市自然资源综合执法支队 | C197: 规划管理岗2 | D197: 14230202008001058 | E197: 1 | F197: 陈谦 | G197: 男 | H197: 142020101620 | I197: 63.2 | J197: 69 | K197: / | L197: / | M197: 65.81 | N197: 77.64 | O197: 71.725 | P197: 2 | W197: 14230202008010027 | X197: 37 | Y197: 1
A198: 黄石市直 | B198: 黄石市自然资源综合执法支队 | C198: 规划管理岗2 | D198: 14230202008001058 | E198: 1 | F198: 朱俊杰 | G198: 男 | H198: 142020106712 | I198: 60.8 | J198: 64 | K198: / | L198: / | M198: 62.24 | N198: 75.22 | O198: 68.73 | P198: 3 | W198: 14230202008010028 | X198: 37 | Y198: 2
A199: 黄石市直 | B199: 黄石市自然资源综合执法支队 | C199: 执法勤务岗1 | D199: 14230202008001059 | E199: 1 | F199: 陈尔东 | G199: 男 | H199: 142020103503 | I199: 69.6 | J199: 70.5 | K199: / | L199: / | M199: 70.005 | N199: 79.66 | O199: 74.8325 | P199: 1 | W199: 14230202008010029 | X199: 37 | Y199: 3
A200: 黄石市直 | B200: 黄石市自然资源综合执法支队 | C200: 执法勤务岗1 | D200: 14230202008001059 | E200: 1 | F200: 张思琪 | G200: 女 | H200: 142020100422 | I200: 65.6 | J200: 73.5 | K200: / | L200: / | M200: 69.155 | N200: 75.96 | O200: 72.5575 | P200: 2 | W200: 14230202008010026 | X200: 38 | Y200: 1
... 981 more rows
